fUSD/lending_fUSD_20260304
["ID","MTS","AMOUNT","RATE_DAILY","PERIOD"]
[407646771,1772604373585,300.0,0.00054794,30]
[407646772,1772604373648,159.22893759,0.00054794,30]
[407646773,1772604373710,155.57558469,0.00054794,30]
[407646774,1772604373774,150.0,0.00054794,30]
[407646775,1772604373908,265.7774742,0.00054794,30]
[407646776,1772604374417,150.0,0.00054794,30]
[407646777,1772604374555,159.10730368,0.00054794,30]
[407646778,1772604374618,150.0,0.00054794,30]
[407646779,1772604374684,210.98072647,0.00054794,30]
[407646780,1772604374754,500.0,0.00054794,30]
[407646781,1772604374821,150.0,0.00054794,30]
[407646782,1772604374883,500.0,0.00054794,30]
[407646803,1772604631376,-1200.0,9.001e-05,2]
[407646805,1772604631385,-224.0,9.001e-05,2]
[407646806,1772604631395,-76.0,9.002e-05,2]
[407646809,1772604631438,-174.0,9.002e-05,2]
[407646810,1772604631449,-268.19654088,9.002e-05,2]
[407646811,1772604631458,-150.0,9.002e-05,2]
[407646812,1772604631470,-300.0,9.002e-05,2]
[407646813,1772604631480,-300.0,9.002e-05,2]
[407646814,1772604631491,-500.0,9.003e-05,2]
[407646815,1772604631502,-500.0,9.003e-05,2]
[407646816,1772604631513,-500.0,9.003e-05,2]
[407646817,1772604631522,-835.1984938,9.003e-05,2]
[407646818,1772604631533,-500.0,9.003e-05,2]
[407646819,1772604631543,-632.44577495,9.003e-05,2]
[407646820,1772604631553,-555.4940659,9.003e-05,2]
[407646821,1772604631563,-700.06248785,9.003e-05,2]
[407646822,1772604631573,-759.24184009,9.003e-05,2]
[407646823,1772604631583,-500.0,9.003e-05,2]
[407646824,1772604631592,-700.0,9.003e-05,2]
[407646825,1772604631602,-600.1949789,9.003e-05,2]
[407646826,1772604631612,-500.0,9.003e-05,2]
[407646827,1772604631622,-500.0,9.003e-05,2]
[407646828,1772604631632,-500.0,9.003e-05,2]
[407646829,1772604631642,-512.4085473,9.003e-05,2]
[407646830,1772604631651,-300.74748455,9.075e-05,2]
[407646831,1772604631661,-163.53,9.366e-05,2]
[407646833,1772604631670,-600.0,9.441e-05,2]
[407646835,1772604631679,-450.0,9.453e-05,14]
[407646837,1772604631689,-1680.0,9.901e-05,2]
[407646839,1772604631698,-250.0,9.901e-05,2]
[407646841,1772604631708,-255.0,9.902e-05,2]
[407646843,1772604631718,-420.0,9.902e-05,2]
[407646845,1772604631728,-344.0,9.902e-05,2]
[407646847,1772604631737,-645.81757187,9.902e-05,2]
[407646849,1772604631753,-121.89962659,9.902e-05,2]
[407646851,1772604631763,-738.2018938,9.949e-05,2]
[407646853,1772604631773,-45.3939537,9.95e-05,2]
[407646855,1772604631785,-689.38942286,9.95e-05,2]
[407646858,1772604631796,-681.56113819,9.95e-05,2]
[407646860,1772604631808,-20149.7215094,9.95e-05,2]
[407646862,1772604631818,-268.19654087,0.00010501,2]
[407646864,1772604631827,-433.0,0.00010892,2]
[407646866,1772604631841,-361.0,0.00010892,2]
[407646868,1772604631852,-2351.0,0.00010892,2]
[407646889,1772604632076,-1017.26167394,0.00011,2]
[407646891,1772604632087,-500.0,0.00011653,2]
[407646893,1772604632100,-2678.65,0.00011669,2]
[407646896,1772604632110,-163.53,0.00011707,2]
[407646898,1772604632120,-150.0,0.00011751,2]
[407646899,1772604632132,-3292.0,0.00011981,2]
[407646900,1772604632142,-736.0,0.00011982,2]
[407646901,1772604632153,-2324.69,0.00011986,2]
[407646902,1772604632165,-268.19654087,0.000121,2]
[407646903,1772604632175,-1852.42,0.00012185,2]
[407646904,1772604632184,-500.0,0.000122,2]
[407646905,1772604632194,-509.70505215,0.000122,2]
[407646906,1772604632205,-510.32990281,0.000122,2]
[407646907,1772604632215,-500.0,0.000122,2]
[407646908,1772604632225,-500.0,0.000122,2]
[407646909,1772604632235,-500.0,0.000122,2]
[407646910,1772604632245,-500.0,0.000122,2]
[407646911,1772604632255,-500.0,0.000122,2]
[407646912,1772604632265,-500.0,0.000122,2]
[407646913,1772604632277,-517.39072445,0.000122,2]
[407646914,1772604632289,-500.0,0.000122,2]
[407646915,1772604632300,-500.0,0.000122,2]
[407646916,1772604632310,-500.0,0.000122,2]
[407646917,1772604632320,-500.0,0.000122,2]
[407646918,1772604632331,-500.0,0.000122,2]
[407646919,1772604632341,-500.0,0.000122,2]
[407646920,1772604632350,-500.0,0.000122,2]
[407646921,1772604632359,-500.0,0.000122,2]
[407646922,1772604632369,-500.0,0.000122,2]
[407646923,1772604632379,-509.51768427,0.000122,2]
[407646924,1772604632388,-500.0,0.000122,2]
[407646925,1772604632398,-500.0,0.000122,2]
[407646926,1772604632407,-500.0,0.000122,2]
[407646927,1772604632417,-500.0,0.000122,2]
[407646928,1772604632427,-500.0,0.000122,2]
[407646929,1772604632437,-500.0,0.000122,2]
[407646930,1772604632446,-500.0,0.000122,2]
[407646931,1772604632455,-500.0,0.000122,2]
[407646932,1772604632465,-500.0,0.000122,2]
[407646933,1772604632474,-500.0,0.000122,2]
[407646934,1772604632485,-500.0,0.000122,2]
[407646935,1772604632495,-1465.72,0.00012271,2]
[407646936,1772604632504,-1004.60920106,0.00012341,2]
[407646937,1772604632515,-500.0,0.00012474,2]
[407646938,1772604632524,-12428.92,0.00012582,2]
[407646939,1772604632534,-336.94576275,0.00012596,2]
[407646940,1772604632544,-200.0,0.00012614,2]
[407646941,1772604632554,-755.0,0.00012646,2]
[407646942,1772604632573,-665.0,0.00012671,2]
[407646943,1772604632582,-500.0,0.00012748,2]
[407646944,1772604632592,-268.0,0.00012855,2]
[407646945,1772604632605,-466.0,0.0001288,2]
[407646946,1772604632615,-332.0,0.00012906,2]
[407646947,1772604632625,-3793.78,0.0001293,2]
[407646948,1772604632634,-5470.95655112,0.00013,15]
[407646949,1772604632644,-466.60605261,0.00013022,2]
[407646950,1772604632653,-1211.0,0.00013156,2]
[407646951,1772604632663,-1252.0,0.00013179,2]
[407646952,1772604632673,-4609.0,0.00013179,2]
[407646953,1772604632682,-922.0,0.00013183,2]
[407646954,1772604632692,-1205.0,0.00013209,2]
[407646955,1772604632701,-1124.0,0.00013235,2]
[407646956,1772604632711,-600.0,0.000136,4]
[407646957,1772604632720,-200.0,0.00013699,2]
[407646958,1772604632730,-1200.0,0.000137,5]
[407646959,1772604632739,-1900.0,0.000138,5]
[407646960,1772604632749,-2500.0,0.000139,5]
[407646961,1772604632762,-163.53,0.00014049,2]
[407646962,1772604632772,-507.0,0.000142,31]
[407646963,1772604632782,-6713.2126,0.00014245,2]
[407646964,1772604632791,-502.55,0.00014251,2]
[407646965,1772604632801,-316.11067218,0.00014311,2]
[407646966,1772604632809,-463.0,0.00014356,2]
[407646967,1772604632819,-500.57596661,0.00014373,2]
[407646968,1772604632828,-501.80388506,0.00014373,2]
[407646969,1772604632837,-500.0,0.00014373,2]
[407646970,1772604632847,-308.33409821,0.00014373,2]
[407646971,1772604632856,-500.0,0.00014373,2]
[407646972,1772604632865,-500.0,0.00014373,2]
[407646973,1772604632875,-501.84880506,0.00014373,2]
[407646974,1772604632884,-500.0,0.00014373,2]
[407646975,1772604632894,-456.67098084,0.00014373,2]
[407646976,1772604632903,-500.7640503,0.00014373,2]
[407646977,1772604632913,-500.0,0.00014373,2]
[407646978,1772604632922,-453.07993053,0.00014373,2]
[407646979,1772604632932,-500.0,0.00014373,2]
[407646980,1772604632941,-500.0,0.00014373,2]
[407646981,1772604632951,-500.0,0.00014373,2]
[407646982,1772604632960,-500.0,0.00014373,2]
[407646983,1772604632969,-500.0,0.00014373,2]
[407646984,1772604632979,-500.0,0.00014373,2]
[407646985,1772604632989,-578.31257671,0.00014373,2]
[407646986,1772604632999,-500.0,0.00014373,2]
[407646987,1772604633009,-183.99849235,0.00014395,2]
[407646988,1772604633019,-3723.26283353,0.00014395,2]
[407646989,1772604633028,-15332.91079305,0.00014406,2]
[407646990,1772604633038,-415.0,0.00014411,2]
[407646991,1772604633048,-500.0,0.00014445,2]
[407646992,1772604633060,-500.0,0.00014445,2]
[407646993,1772604633069,-500.0,0.00014445,2]
[407646994,1772604633079,-500.0,0.00014445,2]
[407646995,1772604633089,-500.0,0.00014445,2]
[407646996,1772604633099,-500.0,0.00014445,2]
[407646997,1772604633108,-648.77307652,0.00014445,2]
[407646998,1772604633118,-6453.0,0.00014497,2]
[407646999,1772604633128,-2129.0,0.00014502,2]
[407647000,1772604633138,-454.66991254,0.00014534,2]
[407647001,1772604633147,-500.0,0.00014553,2]
[407647002,1772604633156,-500.0,0.00014553,2]
[407647003,1772604633166,-500.0,0.00014553,2]
[407647004,1772604633175,-500.0,0.00014553,2]
[407647005,1772604633184,-500.0,0.00014553,2]
[407647006,1772604633194,-500.0,0.00014553,2]
[407647007,1772604633203,-500.0,0.00014553,2]
[407647008,1772604633212,-500.0,0.00014553,2]
[407647009,1772604633222,-500.0,0.00014553,2]
[407647010,1772604633231,-153.03249614,0.00014553,2]
[407647011,1772604633240,-500.0,0.00014553,2]
[407647012,1772604633250,-317.16443663,0.00014553,2]
[407647013,1772604633260,-1981.92605376,0.00014553,2]
[407647014,1772604633269,-151.0,0.00014634,2]
[407647015,1772604633278,-151.0,0.00014634,2]
[407647016,1772604633288,-316.1106721,0.0001471,2]
[407647017,1772604633297,-3723.26283349,0.00014784,2]
[407647018,1772604633307,-2177.57,0.00014853,2]
[407647019,1772604633316,-1000.0,0.00014921,2]
[407647020,1772604633326,-1000.0,0.00014921,2]
[407647021,1772604633341,-1000.0,0.00014921,2]
[407647022,1772604633351,-1000.0,0.00014921,2]
[407647023,1772604633360,-1000.0,0.00014921,2]
[407647024,1772604633369,-1000.0,0.00014921,2]
[407647025,1772604633379,-502.97038157,0.00014921,2]
[407647026,1772604633389,-1000.0,0.00014921,2]
[407647027,1772604633398,-1000.0,0.00014921,2]
[407647028,1772604633407,-1001.33235415,0.00014921,2]
[407647029,1772604633417,-1000.0,0.00014921,2]
[407647030,1772604633427,-500.73867241,0.00014921,2]
[407647031,1772604633437,-250.0,0.00015,2]
[407647032,1772604633447,-1041.0,0.00015101,2]
[407647033,1772604633457,-3501.0,0.00015101,2]
[407647034,1772604633467,-1341.0,0.00015101,2]
[407647035,1772604633477,-619.0,0.00015101,2]
[407647036,1772604633487,-1278.0,0.00015101,2]
[407647037,1772604633496,-1212.0,0.00015101,2]
[407647038,1772604633506,-921.0,0.00015101,2]
[407647039,1772604633515,-5987.0,0.00015101,2]
[407647040,1772604633525,-2458.0,0.00015101,2]
[407647041,1772604633535,-316.1106721,0.00015109,2]
[407647042,1772604633545,-3723.26283349,0.00015174,2]
[407647043,1772604633554,-500.0,0.00015468,2]
[407647044,1772604633564,-1511.09658224,0.00015468,2]
[407647045,1772604633573,-500.0,0.00015468,2]
[407647046,1772604633584,-766.06036311,0.00015468,2]
[407647047,1772604633594,-1500.0,0.00015468,2]
[407647048,1772604633604,-1500.0,0.00015468,2]
[407647049,1772604633615,-1623.82879792,0.00015468,2]
[407647050,1772604633626,-500.0,0.00015468,2]
[407647051,1772604633637,-316.1106721,0.00015507,2]
[407647052,1772604633648,-3723.26283349,0.00015563,2]
[407647053,1772604633658,-1000.0,0.00015893,2]
[407647054,1772604633669,-316.1106721,0.00015906,2]
[407647055,1772604633678,-9035.0,0.00015946,2]
[407647056,1772604633688,-1724.0,0.00015952,2]
[407647057,1772604633698,-3723.26283349,0.00015953,2]
[407647058,1772604633708,-2000.0,0.00016016,2]
[407647059,1772604633717,-2000.0,0.00016016,2]
[407647060,1772604633727,-454.66991252,0.00016217,2]
[407647061,1772604633737,-3723.26283349,0.00016342,2]
[407647062,1772604633746,-1504.34196189,0.00016564,2]
[407647063,1772604633756,-1004.79711341,0.00016564,2]
[407647064,1772604633766,-1144.93928584,0.00016687,2]
[407647065,1772604633776,-166.34,0.00016712,2]
[407647066,1772604633786,-3723.26283349,0.00016732,2]
[407647067,1772604633795,-2324.69,0.00016781,2]
[407647068,1772604633804,-475.41,0.00016787,2]
[407647069,1772604633814,-1000.0,0.00016953,2]
[407647070,1772604633824,-1000.0,0.00016953,2]
[407647071,1772604633834,-1000.0,0.00016953,2]
[407647072,1772604633844,-1000.0,0.00016953,2]
[407647073,1772604633854,-312.35565435,0.00016973,2]
[407647074,1772604633865,-500.0,0.00016973,2]
[407647075,1772604633875,-500.0,0.00016973,2]
[407647076,1772604633884,-500.0,0.00016973,2]
[407647077,1772604633895,-500.0,0.00016973,2]
[407647078,1772604633905,-498.33865244,0.00016973,2]
[407647079,1772604633916,-314.87864638,0.00016973,2]
[407647080,1772604633925,-501.21242592,0.00016973,2]
[407647081,1772604633935,-500.0,0.00016973,2]
[407647082,1772604633945,-500.0,0.00016973,2]
[407647083,1772604633955,-300.0,0.00017,2]
[407647084,1772604633965,-3723.26283349,0.00017121,2]
[407647085,1772604633975,-152.0,0.00017228,3]
[407647086,1772604633986,-152.0,0.00017228,3]
[407647087,1772604633997,-1144.93928582,0.00017294,2]
[407647088,1772604634007,-3100.0,0.000173,6]
[407647089,1772604634017,-600.0,0.000174,6]
[407647090,1772604634027,-168.0,0.00017408,2]
[407647091,1772604634038,-468.02303071,0.00017421,2]
[407647092,1772604634047,-468.02303064,0.00017489,2]
[407647093,1772604634061,-600.0,0.000175,6]
[407647094,1772604634071,-3723.26283349,0.00017511,2]
[407647095,1772604634081,-332.24276546,0.00017521,2]
[407647096,1772604634091,-1172.6,0.0001753,2]
[407647097,1772604634103,-49620.94,0.0001753,2]
[407647098,1772604634112,-507.48882824,0.00017539,2]
[407647099,1772604634122,-468.02303064,0.00017558,2]
[407647100,1772604634134,-212.461,0.00017579,2]
[407647101,1772604634145,-600.0,0.000176,6]
[407647102,1772604634155,-168.0,0.00017618,2]
[407647103,1772604634165,-1139.93403008,0.0001764,2]
[407647104,1772604634174,-1135.39049654,0.0001764,2]
[407647105,1772604634185,-1082.24382077,0.0001764,2]
[407647106,1772604634196,-1035.35974289,0.0001764,2]
[407647107,1772604634206,-1023.72838997,0.0001764,2]
[407647108,1772604634218,-1127.2900656,0.0001764,2]
[407647109,1772604634229,-1022.1648359,0.0001764,2]
[407647110,1772604634239,-1000.57585628,0.0001764,2]
[407647111,1772604634249,-1114.43248758,0.0001764,2]
[407647112,1772604634258,-1037.04076555,0.0001764,2]
[407647113,1772604634268,-1029.34850039,0.0001764,2]
[407647114,1772604634278,-1054.79912155,0.0001764,2]
[407647115,1772604634288,-1036.18526488,0.0001764,2]
[407647116,1772604634298,-1253.92272257,0.0001764,2]
[407647117,1772604634308,-582.70458936,0.0001764,2]
[407647118,1772604634318,-2995.58402741,0.000177,2]
[407647119,1772604634327,-600.0,0.000177,6]
[407647120,1772604634337,-1000.0,0.000178,6]
[407647121,1772604634347,-800.71197683,0.00017808,2]
[407647122,1772604634356,-1000.0,0.0001788,2]
[407647123,1772604634365,-151.97895824,0.000179,3]
[407647124,1772604634375,-153.87796558,0.000179,3]
[407647125,1772604634385,-154.73973566,0.000179,3]
[407647126,1772604634394,-3723.26283349,0.000179,2]
[407647127,1772604634403,-454.66991252,0.000179,2]
[407647128,1772604634413,-1144.93928582,0.000179,2]
[407647129,1772604634423,-3886.0,0.000179,2]
[407647130,1772604634432,-168.0,0.00017966,2]
[407647131,1772604634443,-152.96961452,0.0001799,2]
[407647132,1772604634452,-4857.8042367,0.00017995,2]
[407647133,1772604634462,-1645.0899342,0.00017995,2]
[407647134,1772604634472,-151.0,0.00017997,2]
[407647135,1772604634482,-155.0,0.00017999,2]
[407647136,1772604634491,-300.0,0.00017999,2]
[407647137,1772604634501,-165.73161722,0.00017999,2]
[407647138,1772604634511,-193.29097508,0.00017999,2]
[407647139,1772604634521,-500.0,0.00017999,2]
[407647140,1772604634530,-352.18526381,0.00017999,2]
[407647141,1772604634540,-2648323.7689463,0.00018,2]
[407647146,1772604637478,-250.0,0.00011895,2]
[407647147,1772604637488,-316.1106721,0.00016305,2]
[407647148,1772604637498,-468.02303064,0.00017626,2]
[407647149,1772604637507,-204.6969554,0.000179,2]
[407647150,1772604637517,-45168.83190171,0.00018,2]
[407647151,1772604637528,-1132.68254729,0.00018,2]
[407647152,1772604637596,-435.42168645,0.00018,2]
[407647153,1772604637608,-50657.07043064,0.00018,2]
[407647154,1772604637622,-1854.19529978,0.00018,2]
[407647155,1772604637634,-4696.35352683,0.00018,2]
[407647156,1772604637646,-1750.28318465,0.00018,2]
[407647157,1772604637658,-1262.2417593,0.00018,2]
[407647158,1772604637669,-616.36058888,0.00018,2]
[407647159,1772604637710,-2638.15312271,0.00018,2]
[407647160,1772604637722,-5565.95551596,0.00018,2]
[407647161,1772604637735,-1799649.0679495,0.00018,2]
[407647168,1772604639695,-301.92197159,0.00015101,2]
[407647169,1772604640153,-111.07802841,0.00015101,2]
[407647170,1772604640162,-316.1106721,0.00016704,2]
[407647171,1772604640173,-468.02303064,0.00017695,2]
[407647172,1772604640182,-923842.49118133,0.00018,2]
[407647188,1772604645575,-316.1106721,0.00017102,2]
[407647189,1772604645584,-40.5693281,0.00017763,2]
[407647190,1772604833592,-162.9,0.000302,30]
[407647191,1772604833690,-6913.13,0.000402,30]
[407647192,1772604833761,-703.56,0.00040999,59]
[407647193,1772604833834,-151.0,0.00041096,120]
[407647194,1772604833907,-289.463845,0.00041096,120]
[407647195,1772604834072,-150.0,0.00042173,120]
[407647196,1772604834147,-200.03688072,0.00042998,69]
[407647197,1772604834223,-328.28106609,0.00043835,120]
[407647198,1772604834288,-20000.0,0.00043836,120]
[407647199,1772604834358,-6913.13,0.00044,30]
[407647200,1772604834420,-160.0,0.00044,120]
[407647201,1772604834487,-160.0,0.00044,30]
[407647202,1772604834559,-150.0,0.00044281,120]
[407647203,1772604834629,-162.9,0.00046,30]
[407647204,1772604834696,-2785.11444,0.000461,51]
[407647205,1772604834771,-150.0,0.00046495,120]
[407647206,1772604834840,-1500.0,0.000466,51]
[407647207,1772604834910,-800.0,0.00046677,33]
[407647208,1772604834980,-151.0,0.00046836,120]
[407647209,1772604835048,-1573.892139,0.00046836,120]
[407647210,1772604835119,-1573.892139,0.00046836,120]
[407647211,1772604835190,-1573.892139,0.00046836,120]
[407647212,1772604835265,-1573.892139,0.00046836,120]
[407647213,1772604835336,-165.575212,0.00046836,120]
[407647214,1772604835404,-165.575212,0.00046836,120]
[407647215,1772604835474,-165.575212,0.00046836,120]
[407647216,1772604835541,-165.575212,0.00046836,120]
[407647217,1772604835610,-151.0,0.00046836,120]
[407647218,1772604835676,-236.099855,0.00046836,120]
[407647219,1772604835743,-236.099855,0.00046836,120]
[407647220,1772604835808,-236.099855,0.00046836,120]
[407647221,1772604835873,-236.099855,0.00046836,120]
[407647222,1772604835937,-151.0,0.00046836,120]
[407647223,1772604836001,-151.0,0.00046836,120]
[407647224,1772604836071,-178.877545,0.00046836,120]
[407647225,1772604836143,-195.564328,0.00046836,120]
[407647226,1772604836218,-195.564328,0.00046836,120]
[407647227,1772604836281,-195.564328,0.00046836,120]
[407647228,1772604836345,-195.564328,0.00046836,120]
[407647229,1772604836408,-151.0,0.00046836,120]
[407647230,1772604836475,-151.0,0.00046836,120]
[407647231,1772604836538,-151.0,0.00046836,120]
[407647232,1772604836601,-178.18,0.00046836,30]
[407647233,1772604836677,-150.0,0.0004882,120]
[407647234,1772604836734,-183.5101815,0.000489,120]
[407647235,1772604836793,-2802.0,0.00048994,31]
[407647236,1772604836854,-586.24,0.00049999,120]
[407647237,1772604836913,-388.46972624,0.0005,120]
[407647238,1772604836971,-153.19702547,0.00050753,120]
[407647239,1772604837030,-20000.0,0.00051,120]
[407647240,1772604837100,-2882.1302519,0.00051,120]
[407647241,1772604837172,-2802.0,0.00051198,31]
[407647242,1772604837243,-300.041406,0.00052053,120]
[407647243,1772604837625,-1060.11769541,0.00052054,120]
[407647244,1772604837686,-5000.0,0.00052055,120]
[407647245,1772604837748,-800.0,0.00052156,35]
[407647246,1772604837812,-2545.0,0.00053195,31]
[407647247,1772604837872,-2802.0,0.00053361,31]
[407647248,1772604837932,-1800.0,0.00053482,60]
[407647249,1772604837990,-700.0,0.00053482,60]
[407647250,1772604838048,-150.0,0.00053604,30]
[407647251,1772604838106,-412.98060039,0.00053604,30]
[407647252,1772604838171,-150.0,0.00053699,120]
[407647253,1772604838232,-900.0,0.00053756,60]
[407647254,1772604838293,-1800.0,0.0005403,60]
[407647255,1772604838356,-700.0,0.0005403,60]
[407647256,1772604838416,-786.822849,0.00054111,120]
[407647257,1772604838476,-265.854765,0.00054247,120]
[407647258,1772604838541,-900.0,0.00054304,60]
[407647259,1772604838603,-153.19702547,0.00054378,120]
[407647260,1772604838664,-1103.0,0.0005454,120]
[407647261,1772604838727,-1800.0,0.00054578,60]
[407647262,1772604838789,-700.0,0.00054578,60]
[407647263,1772604838853,-328.15864542,0.00054645,120]
[407647264,1772604838915,-365.88924284,0.00054645,120]
[407647265,1772604838975,-866.5762427,0.00054645,120]
[407647266,1772604839035,-300.0,0.0005474,30]
[407647267,1772604839095,-200.0,0.00054794,120]
[407647268,1772604839163,-200.0,0.00054794,120]
[407647269,1772604839232,-200.0,0.00054794,120]
[407647270,1772604839301,-200.0,0.00054794,120]
[407647271,1772604839384,-200.0,0.00054794,120]
[407647272,1772604839450,-200.0,0.00054794,120]
[407647273,1772604839519,-200.0,0.00054794,120]
[407647274,1772604839585,-200.0,0.00054794,120]
[407647275,1772604839651,-202.72622012,0.00054794,120]
[407647276,1772604839714,-2028.94957177,0.00054794,120]
[407647277,1772604839776,-174.61919142,0.00054794,120]
[407647278,1772604839837,-500.0,0.00054794,120]
[407647279,1772604839898,-219.81267654,0.00054794,120]
[407647280,1772604839958,-151.0,0.00054794,120]
[407647281,1772604840017,-151.0,0.00054794,120]
[407647282,1772604840083,-379.89642596,0.00054794,120]
[407647283,1772604840152,-151.0,0.00054794,120]
[407647284,1772604840223,-151.0,0.00054794,120]
[407647285,1772604840289,-151.0,0.00054794,120]
[407647286,1772604840353,-151.0,0.00054794,120]
[407647287,1772604840418,-151.0,0.00054794,120]
[407647288,1772604840485,-151.0,0.00054794,120]
[407647289,1772604840551,-151.0,0.00054794,120]
[407647290,1772604840618,-151.0,0.00054794,120]
[407647291,1772604840686,-151.0,0.00054794,120]
[407647292,1772604840752,-151.0,0.00054794,120]
[407647293,1772604840814,-151.0,0.00054794,120]
[407647294,1772604840875,-151.0,0.00054794,120]
[407647295,1772604840939,-151.0,0.00054794,120]
[407647296,1772604840999,-151.0,0.00054794,120]
[407647297,1772604841060,-151.0,0.00054794,120]
[407647298,1772604841126,-151.0,0.00054794,120]
[407647299,1772604841193,-151.0,0.00054794,120]
[407647300,1772604841258,-151.0,0.00054794,120]
[407647301,1772604841321,-151.0,0.00054794,120]
[407647302,1772604841384,-151.0,0.00054794,120]
[407647303,1772604841450,-151.0,0.00054794,120]
[407647304,1772604841515,-151.0,0.00054794,120]
[407647305,1772604841582,-151.0,0.00054794,120]
[407647306,1772604841645,-151.0,0.00054794,120]
[407647307,1772604841704,-151.0,0.00054794,120]
[407647308,1772604841764,-151.0,0.00054794,120]
[407647309,1772604841827,-151.0,0.00054794,120]
[407647310,1772604841889,-151.0,0.00054794,120]
[407647311,1772604841948,-151.0,0.00054794,120]
[407647312,1772604842007,-151.0,0.00054794,120]
[407647313,1772604842066,-197.96666985,0.00054794,120]
[407647314,1772604842128,-500.0,0.00054794,120]
[407647315,1772604842194,-518.5,0.00054794,120]
[407647316,1772604842260,-537.6845,0.00054794,120]
[407647317,1772604842323,-557.5788265,0.00054794,120]
[407647318,1772604842389,-578.20924308,0.00054794,120]
[407647319,1772604842455,-599.60298507,0.00054794,120]
[407647320,1772604842520,-621.78829552,0.00054794,120]
[407647321,1772604842583,-644.79446246,0.00054794,120]
[407647322,1772604842648,-668.65185757,0.00054794,120]
[407647323,1772604842714,-693.3919763,0.00054794,120]
[407647324,1772604842780,-719.04747942,0.00054794,120]
[407647325,1772604842846,-745.65223616,0.00054794,120]
[407647326,1772604842911,-773.2413689,0.00054794,120]
[407647327,1772604842976,-801.85129955,0.00054794,120]
[407647328,1772604843041,-831.51979763,0.00054794,120]
[407647329,1772604843106,-862.28603014,0.00054794,120]
[407647330,1772604843180,-894.19061326,0.00054794,120]
[407647331,1772604843248,-927.27566595,0.00054794,120]
[407647332,1772604843316,-961.58486559,0.00054794,120]
[407647333,1772604843386,-997.16350561,0.00054794,120]
[407647334,1772604843558,-500.0,0.00054794,120]
[407647335,1772604843625,-150.0,0.00054794,30]
[407647336,1772604843691,-500.0,0.00054794,30]
[407647337,1772604843754,-150.0,0.00054794,30]
[407647338,1772604843817,-500.0,0.00054794,30]
[407647339,1772604843879,-150.0,0.00054794,30]
[407647340,1772604843941,-500.0,0.00054794,30]
[407647341,1772604844005,-150.0,0.00054794,30]
[407647342,1772604844069,-585.68926033,0.00054794,30]
[407647343,1772604844135,-200.0,0.00054794,30]
[407647344,1772604844204,-150.0,0.00054794,30]
[407647345,1772604844268,-500.0,0.00054794,30]
[407647346,1772604844332,-506.17876864,0.00054794,30]
[407647347,1772604844395,-151.35904697,0.00054794,30]
[407647348,1772604844460,-500.0,0.00054794,30]
[407647349,1772604844524,-503.86986905,0.00054794,30]
[407647350,1772604844589,-173.3937358,0.00054794,30]
[407647351,1772604844655,-150.0,0.00054794,30]
[407647352,1772604844717,-150.0,0.00054794,30]
[407647353,1772604844780,-150.0,0.00054794,30]
[407647354,1772604844839,-150.0,0.00054794,30]
[407647355,1772604844898,-150.0,0.00054794,30]
[407647356,1772604844960,-150.0,0.00054794,30]
[407647357,1772604845021,-150.0,0.00054794,30]
[407647358,1772604845092,-150.0,0.00054794,30]
[407647360,1772604845166,-262.41047996,0.00054794,30]
[407647361,1772604845238,-150.0,0.00054794,30]
[407647362,1772604845306,-250.0,0.00054794,30]
[407647363,1772604845375,-150.0,0.00054794,30]